[Event "Titled Tuesday Blitz February 22 Early 2022"]
[White "Moskvin, Anatoly"]
[Black "Kaplan, Ebru"]
[WhiteFideId "24199990"]
[BlackFideId "6315194"]
[WhiteElo "2079"]
[BlackElo "1941"]
[Result "1-0"]
[Round "04"]
[TimeControl "180+1"]
[Date "2022.02.22"]
[WhiteClock "0:00:11"]
[BlackClock "0:00:40"]

1. e4 {[%clk 0:03:00]}  c5 {[%clk 0:02:59]} 2. Nf3 {[%clk 0:03:01]}  d6 {[%clk 0:02:59]} 3. d4 {[%clk 0:03:01]}  cxd4 {[%clk 0:03:00]} 4. Nxd4 {[%clk 0:03:02]}  Nf6 {[%clk 0:03:00]} 5. f3 {[%clk 0:03:02]}  e5 {[%clk 0:02:58]} 6. Bb5+ {[%clk 0:03:02]}  Bd7 {[%clk 0:02:57]} 7. Bxd7+ {[%clk 0:03:02]}  Qxd7 {[%clk 0:02:58]} 8. Nf5 {[%clk 0:03:02]}  g6 {[%clk 0:02:55]} 9. Ne3 {[%clk 0:03:00]}  Nc6 {[%clk 0:02:49]} 10. Nc3 {[%clk 0:03:00]}  Bg7 {[%clk 0:02:39]} 11. Ned5 {[%clk 0:02:56]}  Nxd5 {[%clk 0:02:36]} 12. Nxd5 {[%clk 0:02:57]}  O-O {[%clk 0:02:34]} 13. Be3 {[%clk 0:02:41]}  Rac8 {[%clk 0:02:25]} 14. Qd2 {[%clk 0:02:29]}  Nd4 {[%clk 0:02:13]} 15. c3 {[%clk 0:02:25]}  Ne6 {[%clk 0:02:08]} 16. Bxa7 {[%clk 0:02:17]}  f5 {[%clk 0:02:06]} 17. Nb6 {[%clk 0:02:11]}  Qc6 {[%clk 0:01:48]} 18. Nxc8 {[%clk 0:02:06]}  Rxc8 {[%clk 0:01:49]} 19. Qd5 {[%clk 0:01:51]}  Qxd5 {[%clk 0:01:45]} 20. exd5 {[%clk 0:01:52]}  Nf4 {[%clk 0:01:46]} 21. O-O {[%clk 0:01:51]}  Nd3 {[%clk 0:01:40]} 22. a4 {[%clk 0:01:13]}  Ra8 {[%clk 0:01:31]} 23. Rfd1 {[%clk 0:00:46]}  Nxb2 {[%clk 0:01:11]} 24. Rdb1 {[%clk 0:00:45]}  Rxa7 {[%clk 0:01:09]} 25. Rxb2 {[%clk 0:00:45]}  e4 {[%clk 0:01:09]} 26. Rb3 {[%clk 0:00:43]}  e3 {[%clk 0:01:07]} 27. f4 {[%clk 0:00:41]}  h6 {[%clk 0:00:56]} 28. Kf1 {[%clk 0:00:30]}  g5 {[%clk 0:00:53]} 29. g3 {[%clk 0:00:29]}  Ra5 {[%clk 0:00:46]} 30. Ke2 {[%clk 0:00:25]}  Rxd5 {[%clk 0:00:41]} 31. Kxe3 {[%clk 0:00:24]}  gxf4+ {[%clk 0:00:39]} 32. gxf4 {[%clk 0:00:24]}  Kf7 {[%clk 0:00:39]} 33. Rxb7+ {[%clk 0:00:23]}  Kf6 {[%clk 0:00:40]} 34. a5 {[%clk 0:00:16]}  Rc5 {[%clk 0:00:39]} 35. Kd3 {[%clk 0:00:12]}  Ke6 {[%clk 0:00:40]} 36. Rxg7 {[%clk 0:00:11]} 1-0


[Site "https://www.chess.com"]

[Event "Titled Tuesday Blitz February 22 Early 2022"]
[White "Murzin, Volodar"]
[Black "Janaszak, Dawid"]
[WhiteFideId "44155573"]
[BlackFideId "1119206"]
[WhiteElo "2766"]
[BlackElo "2529"]
[Result "0-1"]
[Round "04"]
[TimeControl "180+1"]
[Date "2022.02.22"]
[WhiteClock "0:00:01"]
[BlackClock "0:00:21"]

1. e4 {[%clk 0:03:00]}  c5 {[%clk 0:02:59]} 2. Nf3 {[%clk 0:03:00]}  Nc6 {[%clk 0:03:00]} 3. Bb5 {[%clk 0:02:58]}  g6 {[%clk 0:03:00]} 4. Bxc6 {[%clk 0:02:57]}  bxc6 {[%clk 0:03:01]} 5. O-O {[%clk 0:02:56]}  Bg7 {[%clk 0:03:01]} 6. c3 {[%clk 0:02:51]}  Nf6 {[%clk 0:03:00]} 7. Re1 {[%clk 0:02:47]}  O-O {[%clk 0:03:00]} 8. d3 {[%clk 0:02:37]}  d6 {[%clk 0:02:54]} 9. e5 {[%clk 0:02:21]}  Nd5 {[%clk 0:02:53]} 10. Nbd2 {[%clk 0:02:20]}  Bf5 {[%clk 0:02:45]} 11. Nc4 {[%clk 0:02:18]}  Rb8 {[%clk 0:02:31]} 12. h3 {[%clk 0:02:10]}  Qc7 {[%clk 0:02:22]} 13. d4 {[%clk 0:01:33]}  cxd4 {[%clk 0:02:10]} 14. exd6 {[%clk 0:01:24]}  exd6 {[%clk 0:02:09]} 15. Nxd4 {[%clk 0:01:23]}  Bd7 {[%clk 0:02:03]} 16. Qf3 {[%clk 0:01:19]}  Rfe8 {[%clk 0:01:53]} 17. Bg5 {[%clk 0:01:07]}  h6 {[%clk 0:01:43]} 18. Bh4 {[%clk 0:01:06]}  Nb6 {[%clk 0:01:30]} 19. Na5 {[%clk 0:00:53]}  c5 {[%clk 0:01:13]} 20. Ndc6 {[%clk 0:00:51]}  Ra8 {[%clk 0:01:01]} 21. Ne7+ {[%clk 0:00:50]}  Kh7 {[%clk 0:00:52]} 22. Qxf7 {[%clk 0:00:45]}  Bf5 {[%clk 0:00:53]} 23. Bf6 {[%clk 0:00:21]}  Rg8 {[%clk 0:00:38]} 24. Bh4 {[%clk 0:00:08]}  d5 {[%clk 0:00:31]} 25. Bg3 {[%clk 0:00:03]}  Qd7 {[%clk 0:00:28]} 26. Qxg8+ {[%clk 0:00:01]}  Rxg8 {[%clk 0:00:27]} 27. Nxg8 {[%clk 0:00:02]}  Kxg8 {[%clk 0:00:27]} 28. Nb3 {[%clk 0:00:03]}  Na4 {[%clk 0:00:24]} 29. Rad1 {[%clk 0:00:01]}  Nxb2 {[%clk 0:00:22]} 30. Rd2 {[%clk 0:00:01]}  Nc4 {[%clk 0:00:22]} 31. Rde2 {[%clk 0:00:01]}  Bf8 {[%clk 0:00:22]} 32. Bf4 {[%clk 0:00:01]}  g5 {[%clk 0:00:21]} 0-1


[Site "https://www.chess.com"]

[Event "Titled Tuesday Blitz February 22 Early 2022"]
[White "Nakamura, Hikaru"]
[Black "Jobava, Baadur"]
[WhiteFideId "2016192"]
[BlackFideId "13601520"]
[WhiteElo "2850"]
[BlackElo "2617"]
[Result "0-1"]
[Round "04"]
[TimeControl "180+1"]
[Date "2022.02.22"]
[WhiteClock "0:00:21"]
[BlackClock "0:00:24"]

1. Nf3 {[%clk 0:03:00]}  d5 {[%clk 0:02:59]} 2. e3 {[%clk 0:02:59]}  Nf6 {[%clk 0:02:56]} 3. b3 {[%clk 0:02:57]}  c6 {[%clk 0:02:55]} 4. Bb2 {[%clk 0:02:57]}  Bg4 {[%clk 0:02:55]} 5. d4 {[%clk 0:02:55]}  e6 {[%clk 0:02:54]} 6. Nbd2 {[%clk 0:02:56]}  Nbd7 {[%clk 0:02:54]} 7. Bd3 {[%clk 0:02:56]}  a5 {[%clk 0:02:49]} 8. a3 {[%clk 0:02:56]}  a4 {[%clk 0:02:49]} 9. c4 {[%clk 0:02:49]}  axb3 {[%clk 0:02:46]} 10. Qxb3 {[%clk 0:02:49]}  Qb6 {[%clk 0:02:42]} 11. Qc2 {[%clk 0:02:49]}  Be7 {[%clk 0:02:36]} 12. O-O {[%clk 0:02:47]}  Bh5 {[%clk 0:02:28]} 13. Rfb1 {[%clk 0:02:45]}  Bg6 {[%clk 0:02:26]} 14. Bxg6 {[%clk 0:02:43]}  hxg6 {[%clk 0:02:27]} 15. a4 {[%clk 0:02:43]}  Qc7 {[%clk 0:02:20]} 16. h3 {[%clk 0:02:38]}  O-O {[%clk 0:02:19]} 17. Ba3 {[%clk 0:02:36]}  Bxa3 {[%clk 0:02:19]} 18. Rxa3 {[%clk 0:02:36]}  Ra7 {[%clk 0:02:20]} 19. a5 {[%clk 0:02:29]}  Rfa8 {[%clk 0:02:14]} 20. Nb3 {[%clk 0:02:28]}  Ne4 {[%clk 0:02:10]} 21. c5 {[%clk 0:02:24]}  e5 {[%clk 0:02:04]} 22. Nfd2 {[%clk 0:02:14]}  Ng5 {[%clk 0:01:57]} 23. dxe5 {[%clk 0:01:51]}  Qxe5 {[%clk 0:01:57]} 24. Nd4 {[%clk 0:01:51]}  Ne6 {[%clk 0:01:41]} 25. N2f3 {[%clk 0:01:48]}  Nxd4 {[%clk 0:01:31]} 26. exd4 {[%clk 0:01:46]}  Qc7 {[%clk 0:01:31]} 27. Rab3 {[%clk 0:01:41]}  Nf8 {[%clk 0:01:28]} 28. a6 {[%clk 0:01:32]}  bxa6 {[%clk 0:01:25]} 29. Rb6 {[%clk 0:01:32]}  Nd7 {[%clk 0:01:20]} 30. Qa4 {[%clk 0:01:32]}  Nxb6 {[%clk 0:01:20]} 31. cxb6 {[%clk 0:01:30]}  Qb8 {[%clk 0:01:20]} 32. Ne5 {[%clk 0:01:26]}  Rb7 {[%clk 0:01:10]} 33. Qa5 {[%clk 0:01:20]}  Qe8 {[%clk 0:01:01]} 34. Rb3 {[%clk 0:00:39]}  Rab8 {[%clk 0:00:57]} 35. Qxa6 {[%clk 0:00:38]}  f6 {[%clk 0:00:43]} 36. Nf3 {[%clk 0:00:36]}  Qd8 {[%clk 0:00:42]} 37. Qd3 {[%clk 0:00:36]}  g5 {[%clk 0:00:36]} 38. h4 {[%clk 0:00:35]}  Rxb6 {[%clk 0:00:34]} 39. Rc3 {[%clk 0:00:33]}  g4 {[%clk 0:00:32]} 40. Nd2 {[%clk 0:00:31]}  Qd6 {[%clk 0:00:28]} 41. g3 {[%clk 0:00:29]}  Qe6 {[%clk 0:00:28]} 42. Rc1 {[%clk 0:00:30]}  Rb2 {[%clk 0:00:26]} 43. Nf1 {[%clk 0:00:28]}  Qe2 {[%clk 0:00:25]} 44. Qf5 {[%clk 0:00:28]}  Qf3 {[%clk 0:00:25]} 45. Qxf3 {[%clk 0:00:20]}  gxf3 {[%clk 0:00:26]} 46. Rc3 {[%clk 0:00:21]}  R8b3 {[%clk 0:00:24]} 0-1


[Site "https://www.chess.com"]

[Event "Titled Tuesday Blitz February 22 Early 2022"]
[White "Namitbir Singh Walia"]
[Black "Shuvalov, Evgenij"]
[WhiteFideId "35071068"]
[BlackFideId "4187237"]
[WhiteElo "1479"]
[BlackElo "2119"]
[Result "1-0"]
[Round "04"]
[TimeControl "180+1"]
[Date "2022.02.22"]
[WhiteClock "0:01:20"]
[BlackClock "0:00:31"]

1. d4 {[%clk 0:03:00]}  Nf6 {[%clk 0:02:59]} 2. c4 {[%clk 0:03:01]}  g6 {[%clk 0:02:58]} 3. Nf3 {[%clk 0:03:01]}  Bg7 {[%clk 0:02:58]} 4. g3 {[%clk 0:03:01]}  c6 {[%clk 0:02:57]} 5. Bg2 {[%clk 0:02:57]}  d5 {[%clk 0:02:57]} 6. cxd5 {[%clk 0:02:56]}  cxd5 {[%clk 0:02:57]} 7. Nc3 {[%clk 0:02:56]}  Ne4 {[%clk 0:02:57]} 8. Qa4+ {[%clk 0:02:31]}  Nc6 {[%clk 0:02:52]} 9. Ne5 {[%clk 0:02:31]}  Nxc3 {[%clk 0:02:38]} 10. bxc3 {[%clk 0:02:29]}  O-O {[%clk 0:02:33]} 11. Nxc6 {[%clk 0:02:28]}  bxc6 {[%clk 0:02:27]} 12. Qxc6 {[%clk 0:02:25]}  Be6 {[%clk 0:02:25]} 13. Qa4 {[%clk 0:02:20]}  Rc8 {[%clk 0:02:11]} 14. Bd2 {[%clk 0:02:17]}  Qb6 {[%clk 0:02:09]} 15. O-O {[%clk 0:02:15]}  Rc4 {[%clk 0:01:49]} 16. Qa3 {[%clk 0:02:10]}  Qc7 {[%clk 0:01:41]} 17. Rab1 {[%clk 0:02:03]}  Rd8 {[%clk 0:01:32]} 18. Qa6 {[%clk 0:01:56]}  Bc8 {[%clk 0:01:29]} 19. Qb5 {[%clk 0:01:47]}  a6 {[%clk 0:01:17]} 20. Qb6 {[%clk 0:01:38]}  Qxb6 {[%clk 0:01:13]} 21. Rxb6 {[%clk 0:01:39]}  Ra4 {[%clk 0:01:13]} 22. Ra1 {[%clk 0:01:35]}  e5 {[%clk 0:01:08]} 23. Bg5 {[%clk 0:01:27]}  Re8 {[%clk 0:01:00]} 24. Bxd5 {[%clk 0:01:24]}  Be6 {[%clk 0:00:31]} 25. Bc6 {[%clk 0:01:20]} 1-0


[Site "https://www.chess.com"]

[Event "Titled Tuesday Blitz February 22 Early 2022"]
[White "Narayanan.S.L"]
[Black "Ibrahimli, Murad"]
[WhiteFideId "5058422"]
[BlackFideId "13410229"]
[WhiteElo "2494"]
[BlackElo "2109"]
[Result "1-0"]
[Round "04"]
[TimeControl "180+1"]
[Date "2022.02.22"]
[WhiteClock "0:02:05"]
[BlackClock "0:00:06"]

1. b3 {[%clk 0:03:00]}  Nf6 {[%clk 0:03:00]} 2. Bb2 {[%clk 0:03:01]}  g6 {[%clk 0:03:00]} 3. e4 {[%clk 0:02:59]}  d6 {[%clk 0:02:59]} 4. d3 {[%clk 0:02:58]}  Bg7 {[%clk 0:02:59]} 5. Nd2 {[%clk 0:02:58]}  O-O {[%clk 0:02:59]} 6. Ngf3 {[%clk 0:02:56]}  e5 {[%clk 0:03:00]} 7. g3 {[%clk 0:02:56]}  Nc6 {[%clk 0:03:00]} 8. Bg2 {[%clk 0:02:55]}  Nh5 {[%clk 0:02:56]} 9. O-O {[%clk 0:02:56]}  f5 {[%clk 0:02:57]} 10. exf5 {[%clk 0:02:56]}  Bxf5 {[%clk 0:02:56]} 11. h3 {[%clk 0:02:49]}  Bd7 {[%clk 0:02:53]} 12. Rb1 {[%clk 0:02:36]}  Bh6 {[%clk 0:02:21]} 13. Nc4 {[%clk 0:02:32]}  Qc8 {[%clk 0:02:14]} 14. Kh2 {[%clk 0:02:32]}  Nf4 {[%clk 0:02:14]} 15. gxf4 {[%clk 0:02:25]}  Bxf4+ {[%clk 0:02:15]} 16. Kh1 {[%clk 0:02:26]}  Bxh3 {[%clk 0:02:15]} 17. Ng1 {[%clk 0:02:26]}  Bxg2+ {[%clk 0:01:56]} 18. Kxg2 {[%clk 0:02:27]}  Rf5 {[%clk 0:01:57]} 19. Nh3 {[%clk 0:02:27]}  Rh5 {[%clk 0:01:47]} 20. Rh1 {[%clk 0:02:27]}  Bh6 {[%clk 0:01:34]} 21. Ne3 {[%clk 0:02:22]}  Bxe3 {[%clk 0:01:20]} 22. fxe3 {[%clk 0:02:22]}  Ne7 {[%clk 0:01:20]} 23. e4 {[%clk 0:02:18]}  Qe6 {[%clk 0:01:09]} 24. Qf3 {[%clk 0:02:15]}  Rf8 {[%clk 0:00:39]} 25. Qg3 {[%clk 0:02:14]}  h6 {[%clk 0:00:31]} 26. Rbf1 {[%clk 0:02:14]}  Rxf1 {[%clk 0:00:29]} 27. Rxf1 {[%clk 0:02:13]}  g5 {[%clk 0:00:30]} 28. Qf3 {[%clk 0:02:13]}  Rxh3 {[%clk 0:00:11]} 29. Qxh3 {[%clk 0:02:12]}  g4 {[%clk 0:00:12]} 30. Qh4 {[%clk 0:02:10]}  Ng6 {[%clk 0:00:12]} 31. Qf6 {[%clk 0:02:10]}  Qxf6 {[%clk 0:00:09]} 32. Rxf6 {[%clk 0:02:10]}  Nf4+ {[%clk 0:00:10]} 33. Kf2 {[%clk 0:02:06]}  g3+ {[%clk 0:00:06]} 34. Kf3 {[%clk 0:02:05]}  g2 {[%clk 0:00:06]} 35. Kf2 {[%clk 0:02:05]} 1-0


[Site "https://www.chess.com"]

[Event "Titled Tuesday Blitz February 22 Early 2022"]
[White "Narayanan, Srinath"]
[Black "Vusatiuk, Vladimir"]
[WhiteFideId "5018420"]
[BlackFideId "14118610"]
[WhiteElo "2790"]
[BlackElo "2534"]
[Result "1-0"]
[Round "04"]
[TimeControl "180+1"]
[Date "2022.02.22"]
[WhiteClock "0:00:24"]
[BlackClock "0:00:15"]

1. d4 {[%clk 0:03:00]}  Nf6 {[%clk 0:02:58]} 2. Nf3 {[%clk 0:03:00]}  e6 {[%clk 0:02:58]} 3. c4 {[%clk 0:03:00]}  b6 {[%clk 0:02:56]} 4. g3 {[%clk 0:02:59]}  Bb7 {[%clk 0:02:57]} 5. Bg2 {[%clk 0:03:00]}  Be7 {[%clk 0:02:57]} 6. O-O {[%clk 0:02:59]}  O-O {[%clk 0:02:57]} 7. a3 {[%clk 0:02:59]}  Na6 {[%clk 0:02:51]} 8. Nc3 {[%clk 0:02:46]}  Ne4 {[%clk 0:02:50]} 9. Qc2 {[%clk 0:02:46]}  Nxc3 {[%clk 0:02:50]} 10. Qxc3 {[%clk 0:02:47]}  c5 {[%clk 0:02:46]} 11. Rd1 {[%clk 0:02:47]}  Rc8 {[%clk 0:02:45]} 12. d5 {[%clk 0:02:45]}  d6 {[%clk 0:02:40]} 13. dxe6 {[%clk 0:02:24]}  fxe6 {[%clk 0:02:41]} 14. Qe3 {[%clk 0:02:24]}  Nc7 {[%clk 0:02:37]} 15. b3 {[%clk 0:02:17]}  Bf6 {[%clk 0:02:27]} 16. Ra2 {[%clk 0:02:17]}  Qe7 {[%clk 0:02:24]} 17. Bb2 {[%clk 0:02:11]}  d5 {[%clk 0:02:15]} 18. Bxf6 {[%clk 0:02:05]}  Qxf6 {[%clk 0:02:12]} 19. Qe5 {[%clk 0:02:01]}  d4 {[%clk 0:02:03]} 20. Qxf6 {[%clk 0:01:53]}  gxf6 {[%clk 0:02:00]} 21. e3 {[%clk 0:01:52]}  e5 {[%clk 0:01:56]} 22. Nh4 {[%clk 0:01:52]}  Bxg2 {[%clk 0:01:52]} 23. Kxg2 {[%clk 0:01:53]}  Rfd8 {[%clk 0:01:42]} 24. Nf5 {[%clk 0:01:46]}  Kf7 {[%clk 0:01:38]} 25. e4 {[%clk 0:01:46]}  Ne6 {[%clk 0:01:32]} 26. Rd3 {[%clk 0:01:46]}  Ng7 {[%clk 0:01:30]} 27. Nh4 {[%clk 0:01:45]}  a6 {[%clk 0:01:27]} 28. f4 {[%clk 0:01:39]}  b5 {[%clk 0:00:54]} 29. fxe5 {[%clk 0:01:29]}  fxe5 {[%clk 0:00:54]} 30. Nf3 {[%clk 0:01:30]}  Re8 {[%clk 0:00:44]} 31. Rf2 {[%clk 0:01:20]}  Kg8 {[%clk 0:00:41]} 32. Ng5 {[%clk 0:01:13]}  bxc4 {[%clk 0:00:24]} 33. bxc4 {[%clk 0:01:12]}  Rb8 {[%clk 0:00:25]} 34. Nf7 {[%clk 0:00:58]}  Ne6 {[%clk 0:00:19]} 35. Nxe5 {[%clk 0:00:38]}  Ng5 {[%clk 0:00:18]} 36. Nd7 {[%clk 0:00:38]}  Rbd8 {[%clk 0:00:18]} 37. Nf6+ {[%clk 0:00:38]}  Kg7 {[%clk 0:00:17]} 38. Nxe8+ {[%clk 0:00:38]}  Rxe8 {[%clk 0:00:18]} 39. Rb3 {[%clk 0:00:29]}  Nxe4 {[%clk 0:00:18]} 40. Rb7+ {[%clk 0:00:30]}  Kg8 {[%clk 0:00:17]} 41. Rff7 {[%clk 0:00:27]}  Nd6 {[%clk 0:00:14]} 42. Rg7+ {[%clk 0:00:28]}  Kf8 {[%clk 0:00:14]} 43. Rbd7 {[%clk 0:00:28]}  Re2+ {[%clk 0:00:13]} 44. Kh3 {[%clk 0:00:25]}  Re6 {[%clk 0:00:14]} 45. Rxh7 {[%clk 0:00:23]}  Rg6 {[%clk 0:00:14]} 46. Rh8+ {[%clk 0:00:23]}  Rg8 {[%clk 0:00:14]} 47. Rxg8+ {[%clk 0:00:23]}  Kxg8 {[%clk 0:00:15]} 48. Rxd6 {[%clk 0:00:24]}  Kf8 {[%clk 0:00:15]} 1-0


[Site "https://www.chess.com"]

[Event "Titled Tuesday Blitz February 22 Early 2022"]
[White "Necula, Iulian"]
[Black "Lonoff, Marc"]
[WhiteFideId "1232380"]
[BlackFideId "2001349"]
[WhiteElo "1776"]
[BlackElo "2245"]
[Result "0-1"]
[Round "04"]
[TimeControl "180+1"]
[Date "2022.02.22"]
[WhiteClock "0:01:10"]
[BlackClock "0:00:11"]

1. b4 {[%clk 0:03:00]}  e5 {[%clk 0:02:53]} 2. Bb2 {[%clk 0:02:59]}  d6 {[%clk 0:02:47]} 3. Nf3 {[%clk 0:02:55]}  f5 {[%clk 0:02:46]} 4. e3 {[%clk 0:02:54]}  Nf6 {[%clk 0:02:45]} 5. c4 {[%clk 0:02:54]}  Be7 {[%clk 0:02:45]} 6. d4 {[%clk 0:02:53]}  e4 {[%clk 0:02:39]} 7. Nfd2 {[%clk 0:02:53]}  O-O {[%clk 0:02:38]} 8. Be2 {[%clk 0:02:53]}  c6 {[%clk 0:02:37]} 9. O-O {[%clk 0:02:53]}  d5 {[%clk 0:02:37]} 10. f3 {[%clk 0:02:52]}  Bxb4 {[%clk 0:02:29]} 11. fxe4 {[%clk 0:02:47]}  fxe4 {[%clk 0:02:17]} 12. cxd5 {[%clk 0:02:43]}  cxd5 {[%clk 0:02:16]} 13. Qb3 {[%clk 0:02:38]}  Nc6 {[%clk 0:02:06]} 14. a3 {[%clk 0:02:37]}  Bd6 {[%clk 0:02:01]} 15. Nc3 {[%clk 0:02:35]}  Qb6 {[%clk 0:01:46]} 16. Qxb6 {[%clk 0:02:22]}  axb6 {[%clk 0:01:45]} 17. Nb5 {[%clk 0:02:18]}  Bb8 {[%clk 0:01:18]} 18. h3 {[%clk 0:02:17]}  Be6 {[%clk 0:01:16]} 19. Rac1 {[%clk 0:02:08]}  Ne8 {[%clk 0:00:58]} 20. Rxf8+ {[%clk 0:02:05]}  Kxf8 {[%clk 0:00:57]} 21. Rf1+ {[%clk 0:02:04]}  Nf6 {[%clk 0:00:56]} 22. Bd1 {[%clk 0:02:05]}  Kg8 {[%clk 0:00:52]} 23. Bb3 {[%clk 0:02:04]}  Na5 {[%clk 0:00:47]} 24. Ba2 {[%clk 0:02:03]}  Nc4 {[%clk 0:00:42]} 25. Nxc4 {[%clk 0:02:01]}  dxc4 {[%clk 0:00:42]} 26. Bb1 {[%clk 0:02:00]}  Ra5 {[%clk 0:00:40]} 27. Nc3 {[%clk 0:01:58]}  Bd6 {[%clk 0:00:35]} 28. Bxe4 {[%clk 0:01:56]}  Bxa3 {[%clk 0:00:32]} 29. Rb1 {[%clk 0:01:30]}  Bxb2 {[%clk 0:00:26]} 30. Rxb2 {[%clk 0:01:31]}  Ra3 {[%clk 0:00:26]} 31. Rxb6 {[%clk 0:01:25]}  Rxc3 {[%clk 0:00:22]} 32. Rxe6 {[%clk 0:01:25]}  b5 {[%clk 0:00:21]} 33. Bc6 {[%clk 0:01:24]}  b4 {[%clk 0:00:20]} 34. d5 {[%clk 0:01:24]}  b3 {[%clk 0:00:19]} 35. Ba4 {[%clk 0:01:16]}  b2 {[%clk 0:00:18]} 36. Rb6 {[%clk 0:01:16]}  Rc1+ {[%clk 0:00:17]} 37. Kh2 {[%clk 0:01:16]}  b1=Q {[%clk 0:00:17]} 38. Rxb1 {[%clk 0:01:15]}  Rxb1 {[%clk 0:00:17]} 39. d6 {[%clk 0:01:15]}  Rb4 {[%clk 0:00:16]} 40. Bc6 {[%clk 0:01:14]}  c3 {[%clk 0:00:16]} 41. d7 {[%clk 0:01:14]}  Nxd7 {[%clk 0:00:15]} 42. Bxd7 {[%clk 0:01:15]}  c2 {[%clk 0:00:16]} 43. Be6+ {[%clk 0:01:15]}  Kf8 {[%clk 0:00:15]} 44. Bf5 {[%clk 0:01:09]}  c1=Q {[%clk 0:00:14]} 45. Bxh7 {[%clk 0:01:10]}  Qxe3 {[%clk 0:00:11]} 0-1


[Site "https://www.chess.com"]

[Event "Titled Tuesday Blitz February 22 Early 2022"]
[White "Neiksans, Arturs"]
[Black "Petesch, Gabriel"]
[WhiteFideId "11601388"]
[BlackFideId "2032465"]
[WhiteElo "2827"]
[BlackElo "2565"]
[Result "1/2-1/2"]
[Round "04"]
[TimeControl "180+1"]
[Date "2022.02.22"]
[WhiteClock "0:00:43"]
[BlackClock "0:00:06"]

1. e4 {[%clk 0:03:00]}  c6 {[%clk 0:02:59]} 2. d4 {[%clk 0:03:00]}  d5 {[%clk 0:02:58]} 3. exd5 {[%clk 0:02:58]}  Qxd5 {[%clk 0:02:57]} 4. c4 {[%clk 0:02:56]}  Qd8 {[%clk 0:02:58]} 5. Nc3 {[%clk 0:02:53]}  Nf6 {[%clk 0:02:57]} 6. h3 {[%clk 0:02:48]}  Nbd7 {[%clk 0:02:50]} 7. Nf3 {[%clk 0:02:43]}  e6 {[%clk 0:02:47]} 8. Bd3 {[%clk 0:02:41]}  Bd6 {[%clk 0:02:44]} 9. O-O {[%clk 0:02:38]}  O-O {[%clk 0:02:41]} 10. Re1 {[%clk 0:02:33]}  Re8 {[%clk 0:02:38]} 11. Ne5 {[%clk 0:02:24]}  c5 {[%clk 0:02:22]} 12. Nb5 {[%clk 0:02:23]}  Bb8 {[%clk 0:02:16]} 13. Nxd7 {[%clk 0:02:10]}  Bxd7 {[%clk 0:02:12]} 14. dxc5 {[%clk 0:02:09]}  Bxb5 {[%clk 0:02:09]} 15. cxb5 {[%clk 0:02:08]}  Qc7 {[%clk 0:02:09]} 16. Be3 {[%clk 0:01:48]}  Qh2+ {[%clk 0:02:04]} 17. Kf1 {[%clk 0:01:48]}  Qh1+ {[%clk 0:01:59]} 18. Ke2 {[%clk 0:01:48]}  Qxg2 {[%clk 0:02:00]} 19. Rg1 {[%clk 0:01:46]}  Qxh3 {[%clk 0:02:00]} 20. Qa4 {[%clk 0:01:36]}  Qh5+ {[%clk 0:01:55]} 21. Ke1 {[%clk 0:01:27]}  Be5 {[%clk 0:01:46]} 22. Rc1 {[%clk 0:01:21]}  Rad8 {[%clk 0:01:41]} 23. Be2 {[%clk 0:01:20]}  Qh2 {[%clk 0:01:38]} 24. Rf1 {[%clk 0:01:19]}  Nd5 {[%clk 0:01:27]} 25. Bg5 {[%clk 0:00:53]}  Nf4 {[%clk 0:01:02]} 26. Bxd8 {[%clk 0:00:46]}  Rxd8 {[%clk 0:00:58]} 27. Bf3 {[%clk 0:00:46]}  Nd3+ {[%clk 0:00:48]} 28. Ke2 {[%clk 0:00:46]}  Nf4+ {[%clk 0:00:34]} 29. Ke1 {[%clk 0:00:46]}  Nd3+ {[%clk 0:00:28]} 30. Ke2 {[%clk 0:00:43]}  Nf4+ {[%clk 0:00:06]} 31. Ke1 {[%clk 0:00:43]} 1/2-1/2


[Site "https://www.chess.com"]

[Event "Titled Tuesday Blitz February 22 Early 2022"]
[White "Nithyalakshmi, Sivanesan"]
[Black "Shton, Roman"]
[WhiteFideId "5706955"]
[BlackFideId "14137461"]
[WhiteElo "1815"]
[BlackElo "2038"]
[Result "1-0"]
[Round "04"]
[TimeControl "180+1"]
[Date "2022.02.22"]
[WhiteClock "0:00:04"]
[BlackClock "0:00:57"]

1. e4 {[%clk 0:03:00]}  Nf6 {[%clk 0:02:50]} 2. e5 {[%clk 0:02:57]}  Nd5 {[%clk 0:02:49]} 3. c4 {[%clk 0:02:58]}  Nb6 {[%clk 0:02:48]} 4. c5 {[%clk 0:02:58]}  Nd5 {[%clk 0:02:49]} 5. Nc3 {[%clk 0:02:58]}  e6 {[%clk 0:02:49]} 6. Bc4 {[%clk 0:02:43]}  c6 {[%clk 0:02:42]} 7. d4 {[%clk 0:02:30]}  b6 {[%clk 0:02:42]} 8. cxb6 {[%clk 0:02:28]}  Nxb6 {[%clk 0:02:37]} 9. Bd3 {[%clk 0:02:24]}  Be7 {[%clk 0:02:36]} 10. Qg4 {[%clk 0:02:20]}  Kf8 {[%clk 0:02:34]} 11. h4 {[%clk 0:02:14]}  Ba6 {[%clk 0:02:29]} 12. Bc2 {[%clk 0:02:09]}  c5 {[%clk 0:02:25]} 13. Rh3 {[%clk 0:01:58]}  cxd4 {[%clk 0:02:23]} 14. Rg3 {[%clk 0:01:48]}  g6 {[%clk 0:02:23]} 15. Bh6+ {[%clk 0:01:44]}  Kg8 {[%clk 0:02:23]} 16. Ne4 {[%clk 0:01:35]}  Bxh4 {[%clk 0:02:17]} 17. Rf3 {[%clk 0:01:16]}  Nd5 {[%clk 0:02:10]} 18. Nd6 {[%clk 0:01:03]}  f5 {[%clk 0:01:57]} 19. exf6 {[%clk 0:00:48]}  Nxf6 {[%clk 0:01:44]} 20. Qxh4 {[%clk 0:00:44]}  Nc6 {[%clk 0:01:34]} 21. Rxf6 {[%clk 0:00:32]}  Qa5+ {[%clk 0:01:24]} 22. Bd2 {[%clk 0:00:20]}  Qe5+ {[%clk 0:01:24]} 23. Ne4 {[%clk 0:00:18]}  d5 {[%clk 0:01:22]} 24. Nf3 {[%clk 0:00:13]}  Qc7 {[%clk 0:01:16]} 25. Neg5 {[%clk 0:00:12]}  Nd8 {[%clk 0:01:09]} 26. Qxd4 {[%clk 0:00:10]}  Qxc2 {[%clk 0:01:07]} 27. Rc1 {[%clk 0:00:09]}  Qd3 {[%clk 0:01:01]} 28. Qxd3 {[%clk 0:00:08]}  Bxd3 {[%clk 0:01:02]} 29. Ne5 {[%clk 0:00:08]}  Kg7 {[%clk 0:00:59]} 30. Rf3 {[%clk 0:00:05]}  Bf5 {[%clk 0:00:58]} 31. Rc7+ {[%clk 0:00:05]}  Kf6 {[%clk 0:00:57]} 32. Ng4# {[%clk 0:00:04]} 1-0


[Site "https://www.chess.com"]

[Event "Titled Tuesday Blitz February 22 Early 2022"]
[White "Nugumanov, Bakhtiyar"]
[Black "Przybylski, Wojciech"]
[WhiteFideId "13701797"]
[BlackFideId "1117599"]
[WhiteElo "2262"]
[BlackElo "2133"]
[Result "0-1"]
[Round "04"]
[TimeControl "180+1"]
[Date "2022.02.22"]
[WhiteClock "0:01:36"]
[BlackClock "0:01:57"]

1. Nf3 {[%clk 0:03:00]}  Nf6 {[%clk 0:02:58]} 2. c4 {[%clk 0:03:01]}  e6 {[%clk 0:02:54]} 3. g3 {[%clk 0:02:59]}  b6 {[%clk 0:02:49]} 4. Bg2 {[%clk 0:03:00]}  Bb7 {[%clk 0:02:49]} 5. O-O {[%clk 0:03:01]}  c5 {[%clk 0:02:48]} 6. Re1 {[%clk 0:03:00]}  Be7 {[%clk 0:02:44]} 7. Nc3 {[%clk 0:03:00]}  Ne4 {[%clk 0:02:43]} 8. Nxe4 {[%clk 0:02:56]}  Bxe4 {[%clk 0:02:42]} 9. d3 {[%clk 0:02:57]}  Bc6 {[%clk 0:02:39]} 10. e4 {[%clk 0:02:57]}  d6 {[%clk 0:02:35]} 11. d4 {[%clk 0:02:50]}  O-O {[%clk 0:02:30]} 12. Qe2 {[%clk 0:02:43]}  cxd4 {[%clk 0:02:23]} 13. Nxd4 {[%clk 0:02:42]}  Bb7 {[%clk 0:02:23]} 14. Be3 {[%clk 0:02:38]}  Nd7 {[%clk 0:02:23]} 15. b4 {[%clk 0:02:36]}  Rc8 {[%clk 0:02:21]} 16. Rac1 {[%clk 0:02:35]}  Qc7 {[%clk 0:02:20]} 17. Nb5 {[%clk 0:02:32]}  Qb8 {[%clk 0:02:20]} 18. Bf4 {[%clk 0:02:30]}  e5 {[%clk 0:02:17]} 19. Be3 {[%clk 0:02:28]}  Rfd8 {[%clk 0:02:08]} 20. Red1 {[%clk 0:01:59]}  Nf8 {[%clk 0:02:05]} 21. f4 {[%clk 0:01:54]}  Qa8 {[%clk 0:02:01]} 22. fxe5 {[%clk 0:01:36]}  dxe5 {[%clk 0:01:58]} 23. Rd7 {[%clk 0:01:36]}  Rxd7 {[%clk 0:01:57]} 0-1


[Site "https://www.chess.com"]